[Event "Chessable Masters - Torneo preliminare"]
[White "Salem, A.R. Saleh"]
[Black "Pichot, Alan"]
[WhiteFideId "9301348"]
[BlackFideId "110973"]
[WhiteElo "2654"]
[BlackElo "2549"]
[Result "1-0"]
[Round "8"]
[TimeControl "600+2"]
[Date "2023.03.13"]
[WhiteClock "0:00:06"]
[BlackClock "0:00:05"]

1. d4 {[%clk 0:10:00]}  d5 {[%clk 0:09:54]} 2. c4 {[%clk 0:10:01]}  e6 {[%clk 0:09:55]} 3. Nf3 {[%clk 0:10:02]}  Nf6 {[%clk 0:09:44]} 4. g3 {[%clk 0:10:03]}  Be7 {[%clk 0:09:28]} 5. Bg2 {[%clk 0:10:04]}  O-O {[%clk 0:09:29]} 6. O-O {[%clk 0:10:06]}  dxc4 {[%clk 0:09:30]} 7. Qc2 {[%clk 0:10:06]}  a6 {[%clk 0:09:30]} 8. a4 {[%clk 0:10:07]}  Bd7 {[%clk 0:09:30]} 9. Qxc4 {[%clk 0:10:08]}  Bc6 {[%clk 0:09:31]} 10. Bf4 {[%clk 0:10:10]}  Bd6 {[%clk 0:09:00]} 11. Qc1 {[%clk 0:10:10]}  Nbd7 {[%clk 0:08:55]} 12. Nc3 {[%clk 0:10:01]}  Qe7 {[%clk 0:08:33]} 13. Re1 {[%clk 0:09:55]}  Bxf3 {[%clk 0:08:19]} 14. Bxf3 {[%clk 0:09:55]}  c6 {[%clk 0:08:20]} 15. a5 {[%clk 0:09:52]}  e5 {[%clk 0:08:15]} 16. dxe5 {[%clk 0:09:52]}  Nxe5 {[%clk 0:08:16]} 17. Bg2 {[%clk 0:09:53]}  Rfe8 {[%clk 0:08:13]} 18. Qc2 {[%clk 0:09:28]}  Rad8 {[%clk 0:08:06]} 19. Qb3 {[%clk 0:09:21]}  Neg4 {[%clk 0:07:28]} 20. Bxd6 {[%clk 0:07:15]}  Rxd6 {[%clk 0:07:27]} 21. Rf1 {[%clk 0:06:00]}  Rd2 {[%clk 0:06:37]} 22. Ra4 {[%clk 0:05:44]}  Red8 {[%clk 0:06:26]} 23. h3 {[%clk 0:05:36]}  Ne5 {[%clk 0:06:13]} 24. Rf4 {[%clk 0:03:40]}  R2d4 {[%clk 0:05:38]} 25. Rxd4 {[%clk 0:03:28]}  Rxd4 {[%clk 0:05:36]} 26. Rd1 {[%clk 0:03:16]}  Rxd1+ {[%clk 0:04:43]} 27. Nxd1 {[%clk 0:03:18]}  Qc7 {[%clk 0:04:18]} 28. Ne3 {[%clk 0:02:50]}  Ne8 {[%clk 0:04:17]} 29. Qc3 {[%clk 0:02:40]}  Nd7 {[%clk 0:04:10]} 30. h4 {[%clk 0:01:53]}  Nd6 {[%clk 0:02:25]} 31. Bh3 {[%clk 0:01:52]}  Nb5 {[%clk 0:02:03]} 32. Qd2 {[%clk 0:01:52]}  Nc5 {[%clk 0:01:49]} 33. Nc4 {[%clk 0:01:04]}  Ne4 {[%clk 0:00:49]} 34. Qe3 {[%clk 0:01:05]}  Nf6 {[%clk 0:00:43]} 35. Qb6 {[%clk 0:00:23]}  Qxb6 {[%clk 0:00:21]} 36. axb6 {[%clk 0:00:24]}  Ne8 {[%clk 0:00:22]} 37. Na5 {[%clk 0:00:22]}  Nbd6 {[%clk 0:00:21]} 38. e4 {[%clk 0:00:15]}  f6 {[%clk 0:00:04]} 39. f4 {[%clk 0:00:16]}  Nxe4 {[%clk 0:00:04]} 40. Nxb7 {[%clk 0:00:17]}  Kf8 {[%clk 0:00:05]} 41. Nd8 {[%clk 0:00:14]}  N8d6 {[%clk 0:00:05]} 42. b7 {[%clk 0:00:11]}  Nxb7 {[%clk 0:00:06]} 43. Nxb7 {[%clk 0:00:13]}  Nxg3 {[%clk 0:00:08]} 44. Kf2 {[%clk 0:00:09]}  Ne4+ {[%clk 0:00:09]} 45. Ke3 {[%clk 0:00:11]}  Ng3 {[%clk 0:00:10]} 46. Bg4 {[%clk 0:00:10]}  h5 {[%clk 0:00:10]} 47. Bh3 {[%clk 0:00:10]}  g5 {[%clk 0:00:04]} 48. fxg5 {[%clk 0:00:10]}  fxg5 {[%clk 0:00:05]} 49. hxg5 {[%clk 0:00:11]}  Kg7 {[%clk 0:00:06]} 50. Nc5 {[%clk 0:00:07]}  a5 {[%clk 0:00:04]} 51. Ne4 {[%clk 0:00:05]}  Kg6 {[%clk 0:00:05]} 52. Nxg3 {[%clk 0:00:06]} 1-0


[Site "Internet"]

[Event "Chessable Masters - Torneo preliminare"]
[White "Bachmann, Axel"]
[Black "Le, Tuan Minh"]
[WhiteFideId "3700488"]
[BlackFideId "12401153"]
[WhiteElo "2618"]
[BlackElo "2489"]
[Result "0-1"]
[Round "8"]
[TimeControl "600+2"]
[Date "2023.03.13"]
[WhiteClock "0:00:10"]
[BlackClock "0:03:11"]

1. Nf3 {[%clk 0:09:58]}  d5 {[%clk 0:09:57]} 2. e3 {[%clk 0:09:59]}  Nf6 {[%clk 0:09:58]} 3. c4 {[%clk 0:09:59]}  c6 {[%clk 0:09:59]} 4. Nc3 {[%clk 0:09:58]}  a6 {[%clk 0:10:00]} 5. Qc2 {[%clk 0:09:54]}  e6 {[%clk 0:09:42]} 6. b3 {[%clk 0:09:47]}  c5 {[%clk 0:09:37]} 7. cxd5 {[%clk 0:07:48]}  exd5 {[%clk 0:09:37]} 8. Bb2 {[%clk 0:07:47]}  Nc6 {[%clk 0:09:16]} 9. a3 {[%clk 0:07:48]}  Bd6 {[%clk 0:08:44]} 10. Bd3 {[%clk 0:07:42]}  h6 {[%clk 0:08:18]} 11. Ne2 {[%clk 0:07:01]}  O-O {[%clk 0:08:12]} 12. O-O {[%clk 0:06:12]}  Re8 {[%clk 0:08:03]} 13. Ng3 {[%clk 0:05:38]}  b5 {[%clk 0:07:28]} 14. Bf5 {[%clk 0:05:30]}  Bb7 {[%clk 0:07:24]} 15. Rac1 {[%clk 0:05:08]}  Bf8 {[%clk 0:07:00]} 16. Qb1 {[%clk 0:05:05]}  d4 {[%clk 0:06:42]} 17. b4 {[%clk 0:03:21]}  cxb4 {[%clk 0:05:36]} 18. axb4 {[%clk 0:03:20]}  Nxb4 {[%clk 0:05:31]} 19. Bxd4 {[%clk 0:03:12]}  a5 {[%clk 0:05:25]} 20. Bc3 {[%clk 0:01:26]}  Bd5 {[%clk 0:05:19]} 21. Nd4 {[%clk 0:01:19]}  Qb6 {[%clk 0:04:16]} 22. Qa1 {[%clk 0:01:13]}  Na2 {[%clk 0:04:09]} 23. Rb1 {[%clk 0:00:41]}  Nxc3 {[%clk 0:04:10]} 24. dxc3 {[%clk 0:00:43]}  b4 {[%clk 0:04:11]} 25. cxb4 {[%clk 0:00:43]}  axb4 {[%clk 0:04:13]} 26. Qb2 {[%clk 0:00:43]}  h5 {[%clk 0:04:01]} 27. Qe2 {[%clk 0:00:38]}  h4 {[%clk 0:04:01]} 28. Nh5 {[%clk 0:00:24]}  Qxd4 {[%clk 0:03:22]} 29. Rfd1 {[%clk 0:00:26]}  Bc4 {[%clk 0:03:15]} 30. Qf3 {[%clk 0:00:10]}  Qe5 {[%clk 0:03:11]} 0-1


[Site "Internet"]

[Event "Chessable Masters - Torneo preliminare"]
[White "Martinez Alcantara, Jose Eduardo"]
[Black "Sychev, Klementy"]
[WhiteFideId "3805662"]
[BlackFideId "4114060"]
[WhiteElo "2643"]
[BlackElo "2484"]
[Result "1-0"]
[Round "8"]
[TimeControl "600+2"]
[Date "2023.03.13"]
[WhiteClock "0:00:15"]
[BlackClock "0:00:04"]

1. e4 {[%clk 0:10:01]}  e5 {[%clk 0:09:55]} 2. Nf3 {[%clk 0:10:03]}  Nc6 {[%clk 0:09:55]} 3. Nc3 {[%clk 0:10:04]}  Nf6 {[%clk 0:09:52]} 4. h3 {[%clk 0:10:04]}  Bb4 {[%clk 0:09:51]} 5. a3 {[%clk 0:10:03]}  Bxc3 {[%clk 0:09:49]} 6. dxc3 {[%clk 0:10:05]}  d6 {[%clk 0:09:39]} 7. Bd3 {[%clk 0:10:02]}  Ne7 {[%clk 0:09:30]} 8. Qe2 {[%clk 0:09:33]}  Ng6 {[%clk 0:09:26]} 9. Be3 {[%clk 0:09:05]}  Bd7 {[%clk 0:08:23]} 10. O-O-O {[%clk 0:09:04]}  Bc6 {[%clk 0:08:09]} 11. Nd2 {[%clk 0:08:59]}  Qe7 {[%clk 0:07:44]} 12. Rhe1 {[%clk 0:08:38]}  a6 {[%clk 0:07:35]} 13. g3 {[%clk 0:08:31]}  Bd7 {[%clk 0:07:13]} 14. h4 {[%clk 0:07:54]}  Nf8 {[%clk 0:06:43]} 15. Kb1 {[%clk 0:07:46]}  h6 {[%clk 0:06:15]} 16. f3 {[%clk 0:07:39]}  Bc6 {[%clk 0:06:05]} 17. Bf2 {[%clk 0:07:32]}  Ne6 {[%clk 0:05:52]} 18. Nc4 {[%clk 0:07:30]}  Bb5 {[%clk 0:05:21]} 19. Ne3 {[%clk 0:07:05]}  Bxd3 {[%clk 0:05:11]} 20. cxd3 {[%clk 0:07:07]}  O-O-O {[%clk 0:04:20]} 21. d4 {[%clk 0:07:00]}  g6 {[%clk 0:04:01]} 22. Nd5 {[%clk 0:06:34]}  Nxd5 {[%clk 0:03:46]} 23. exd5 {[%clk 0:06:36]}  Ng7 {[%clk 0:03:46]} 24. dxe5 {[%clk 0:06:37]}  Qxe5 {[%clk 0:03:27]} 25. Qxe5 {[%clk 0:05:49]}  dxe5 {[%clk 0:03:29]} 26. Rxe5 {[%clk 0:05:50]}  Rhe8 {[%clk 0:03:30]} 27. Rde1 {[%clk 0:04:37]}  Rxe5 {[%clk 0:02:12]} 28. Rxe5 {[%clk 0:04:39]}  f6 {[%clk 0:02:14]} 29. Re7 {[%clk 0:04:19]}  Nf5 {[%clk 0:02:15]} 30. Rf7 {[%clk 0:04:07]}  Rxd5 {[%clk 0:02:12]} 31. g4 {[%clk 0:04:05]}  Rd1+ {[%clk 0:01:48]} 32. Ka2 {[%clk 0:03:56]}  Nd6 {[%clk 0:01:47]} 33. Rf8+ {[%clk 0:03:50]}  Kd7 {[%clk 0:01:45]} 34. Rxf6 {[%clk 0:03:50]}  Nc4 {[%clk 0:01:40]} 35. Rf7+ {[%clk 0:03:35]}  Kc8 {[%clk 0:01:18]} 36. Bg3 {[%clk 0:03:19]}  b5 {[%clk 0:01:08]} 37. Bf4 {[%clk 0:02:35]}  Rh1 {[%clk 0:00:55]} 38. Rxc7+ {[%clk 0:02:02]}  Kd8 {[%clk 0:00:56]} 39. Rc6 {[%clk 0:02:03]}  Rxh4 {[%clk 0:00:50]} 40. Rxg6 {[%clk 0:01:54]}  Rh3 {[%clk 0:00:50]} 41. Rxa6 {[%clk 0:01:29]}  Rxf3 {[%clk 0:00:49]} 42. Bxh6 {[%clk 0:01:30]}  Rf2 {[%clk 0:00:50]} 43. Bc1 {[%clk 0:01:32]}  Rf1 {[%clk 0:00:43]} 44. Bg5+ {[%clk 0:01:32]}  Kc7 {[%clk 0:00:42]} 45. Rf6 {[%clk 0:01:32]}  Rg1 {[%clk 0:00:41]} 46. Rf2 {[%clk 0:01:17]}  Rxg4 {[%clk 0:00:40]} 47. Bc1 {[%clk 0:01:18]}  Kc6 {[%clk 0:00:31]} 48. b3 {[%clk 0:01:06]}  Nb6 {[%clk 0:00:20]} 49. Kb2 {[%clk 0:00:58]}  Nd7 {[%clk 0:00:17]} 50. Kc2 {[%clk 0:00:57]}  Rg1 {[%clk 0:00:13]} 51. Rh2 {[%clk 0:00:55]}  Rf1 {[%clk 0:00:13]} 52. Rh6+ {[%clk 0:00:51]}  Kb7 {[%clk 0:00:14]} 53. Rh7 {[%clk 0:00:50]}  Kc6 {[%clk 0:00:15]} 54. Rh6+ {[%clk 0:00:52]}  Kb7 {[%clk 0:00:16]} 55. Be3 {[%clk 0:00:50]}  Re1 {[%clk 0:00:12]} 56. Bd4 {[%clk 0:00:49]}  Ra1 {[%clk 0:00:09]} 57. Rd6 {[%clk 0:00:36]}  Kc7 {[%clk 0:00:09]} 58. Ra6 {[%clk 0:00:36]}  Kb7 {[%clk 0:00:09]} 59. Ra7+ {[%clk 0:00:37]}  Kc6 {[%clk 0:00:10]} 60. Kb2 {[%clk 0:00:36]}  Rd1 {[%clk 0:00:10]} 61. a4 {[%clk 0:00:37]}  bxa4 {[%clk 0:00:10]} 62. Rxa4 {[%clk 0:00:39]}  Rd2+ {[%clk 0:00:11]} 63. Ka3 {[%clk 0:00:40]}  Rd1 {[%clk 0:00:12]} 64. Kb4 {[%clk 0:00:41]}  Rf1 {[%clk 0:00:11]} 65. Ra6+ {[%clk 0:00:42]}  Kc7 {[%clk 0:00:12]} 66. Ra7+ {[%clk 0:00:43]}  Kc6 {[%clk 0:00:13]} 67. Ra6+ {[%clk 0:00:45]}  Kc7 {[%clk 0:00:15]} 68. Rh6 {[%clk 0:00:46]}  Rf5 {[%clk 0:00:14]} 69. Rh7 {[%clk 0:00:44]}  Kc6 {[%clk 0:00:15]} 70. Rh4 {[%clk 0:00:42]}  Kc7 {[%clk 0:00:13]} 71. c4 {[%clk 0:00:42]}  Nb8 {[%clk 0:00:12]} 72. Rh7+ {[%clk 0:00:41]}  Kc8 {[%clk 0:00:13]} 73. Rh3 {[%clk 0:00:34]}  Nc6+ {[%clk 0:00:12]} 74. Kc3 {[%clk 0:00:35]}  Rf1 {[%clk 0:00:13]} 75. Be3 {[%clk 0:00:33]}  Rb1 {[%clk 0:00:07]} 76. Rh5 {[%clk 0:00:24]}  Re1 {[%clk 0:00:07]} 77. Bd2 {[%clk 0:00:21]}  Rf1 {[%clk 0:00:08]} 78. Rh3 {[%clk 0:00:19]}  Rb1 {[%clk 0:00:08]} 79. Kc2 {[%clk 0:00:17]}  Rf1 {[%clk 0:00:07]} 80. Bc3 {[%clk 0:00:18]}  Kd7 {[%clk 0:00:06]} 81. b4 {[%clk 0:00:18]}  Rf4 {[%clk 0:00:07]} 82. Kb3 {[%clk 0:00:19]}  Nd8 {[%clk 0:00:05]} 83. Rh7+ {[%clk 0:00:19]}  Kc8 {[%clk 0:00:06]} 84. Rh6 {[%clk 0:00:17]}  Kd7 {[%clk 0:00:06]} 85. b5 {[%clk 0:00:13]}  Ne6 {[%clk 0:00:07]} 86. Kb4 {[%clk 0:00:14]}  Rf1 {[%clk 0:00:08]} 87. Rh7+ {[%clk 0:00:11]}  Kd6 {[%clk 0:00:09]} 88. Rh5 {[%clk 0:00:10]}  Rb1+ {[%clk 0:00:07]} 89. Ka3 {[%clk 0:00:11]}  Rc1 {[%clk 0:00:06]} 90. Kb2 {[%clk 0:00:11]}  Rf1 {[%clk 0:00:06]} 91. Rd5+ {[%clk 0:00:12]}  Kc7 {[%clk 0:00:05]} 92. Ba5+ {[%clk 0:00:13]}  Kc8 {[%clk 0:00:04]} 93. Rd6 {[%clk 0:00:11]}  Nf4 {[%clk 0:00:03]} 94. Bd2 {[%clk 0:00:09]}  Ne2 {[%clk 0:00:03]} 95. Rd3 {[%clk 0:00:09]}  Rf5 {[%clk 0:00:03]} 96. Kb3 {[%clk 0:00:10]}  Ng1 {[%clk 0:00:04]} 97. Kb4 {[%clk 0:00:11]}  Nf3 {[%clk 0:00:05]} 98. Bc3 {[%clk 0:00:13]}  Kc7 {[%clk 0:00:06]} 99. Re3 {[%clk 0:00:12]}  Rf4 {[%clk 0:00:06]} 100. Re7+ {[%clk 0:00:11]}  Kd6 {[%clk 0:00:06]} 101. Re2 {[%clk 0:00:12]}  Kd7 {[%clk 0:00:07]} 102. Rg2 {[%clk 0:00:11]}  Kc8 {[%clk 0:00:06]} 103. Rg8+ {[%clk 0:00:12]}  Kb7 {[%clk 0:00:07]} 104. Rg7+ {[%clk 0:00:14]}  Kc8 {[%clk 0:00:08]} 105. b6 {[%clk 0:00:14]}  Rf6 {[%clk 0:00:04]} 106. Bxf6 {[%clk 0:00:15]} 1-0


[Site "Internet"]

[Event "Chessable Masters - Torneo preliminare"]
[White "Pantsulaia, Levan"]
[Black "Fier, Alexandr"]
[WhiteFideId "13602071"]
[BlackFideId "2107139"]
[WhiteElo "2533"]
[BlackElo "2504"]
[Result "1/2-1/2"]
[Round "8"]
[TimeControl "600+2"]
[Date "2023.03.13"]
[WhiteClock "0:00:25"]
[BlackClock "0:01:08"]

1. Nf3 {[%clk 0:08:58]}  c5 {[%clk 0:09:59]} 2. c4 {[%clk 0:08:59]}  Nf6 {[%clk 0:10:00]} 3. Nc3 {[%clk 0:08:57]}  d5 {[%clk 0:10:01]} 4. cxd5 {[%clk 0:08:58]}  Nxd5 {[%clk 0:10:02]} 5. g3 {[%clk 0:08:59]}  g6 {[%clk 0:10:00]} 6. Qa4+ {[%clk 0:08:51]}  Nc6 {[%clk 0:09:57]} 7. Bg2 {[%clk 0:08:38]}  Nb6 {[%clk 0:08:55]} 8. Qb5 {[%clk 0:08:36]}  Nd7 {[%clk 0:08:08]} 9. h4 {[%clk 0:08:26]}  h6 {[%clk 0:08:07]} 10. d3 {[%clk 0:08:23]}  Bg7 {[%clk 0:08:07]} 11. Be3 {[%clk 0:08:13]}  Qb6 {[%clk 0:08:02]} 12. Qxb6 {[%clk 0:08:02]}  axb6 {[%clk 0:08:04]} 13. a3 {[%clk 0:08:00]}  O-O {[%clk 0:08:04]} 14. Rc1 {[%clk 0:07:54]}  Nf6 {[%clk 0:07:28]} 15. Bf4 {[%clk 0:06:52]}  Be6 {[%clk 0:07:22]} 16. Nd2 {[%clk 0:06:39]}  Rfc8 {[%clk 0:06:38]} 17. Nc4 {[%clk 0:06:37]}  Nd7 {[%clk 0:06:39]} 18. O-O {[%clk 0:05:38]}  h5 {[%clk 0:06:34]} 19. Bd5 {[%clk 0:05:18]}  Bxd5 {[%clk 0:05:55]} 20. Nxd5 {[%clk 0:05:20]}  Ra6 {[%clk 0:05:55]} 21. Nc7 {[%clk 0:04:44]}  e5 {[%clk 0:05:46]} 22. Nxa6 {[%clk 0:04:44]}  exf4 {[%clk 0:05:47]} 23. Nd6 {[%clk 0:04:45]}  Rf8 {[%clk 0:05:14]} 24. Nc7 {[%clk 0:04:43]}  fxg3 {[%clk 0:05:12]} 25. fxg3 {[%clk 0:04:44]}  Be5 {[%clk 0:05:11]} 26. Ncb5 {[%clk 0:04:03]}  Bxg3 {[%clk 0:05:11]} 27. Nxb7 {[%clk 0:04:01]}  Bxh4 {[%clk 0:05:11]} 28. b4 {[%clk 0:03:52]}  Bg5 {[%clk 0:05:07]} 29. Rc2 {[%clk 0:03:38]}  Nce5 {[%clk 0:04:29]} 30. bxc5 {[%clk 0:03:32]}  bxc5 {[%clk 0:04:31]} 31. a4 {[%clk 0:03:21]}  Ra8 {[%clk 0:04:22]} 32. a5 {[%clk 0:03:16]}  Nc6 {[%clk 0:04:21]} 33. Ra1 {[%clk 0:03:09]}  Be3+ {[%clk 0:04:04]} 34. Kf1 {[%clk 0:03:06]}  g5 {[%clk 0:03:59]} 35. Ra4 {[%clk 0:02:33]}  Nb4 {[%clk 0:03:55]} 36. Rc4 {[%clk 0:02:24]}  f5 {[%clk 0:03:52]} 37. N5d6 {[%clk 0:01:55]}  Ne5 {[%clk 0:03:13]} 38. Rxc5 {[%clk 0:01:53]}  Bxc5 {[%clk 0:03:12]} 39. Nxc5 {[%clk 0:01:54]}  Nbc6 {[%clk 0:03:02]} 40. a6 {[%clk 0:01:55]}  f4 {[%clk 0:02:53]} 41. Ne6 {[%clk 0:01:56]}  f3 {[%clk 0:02:33]} 42. Nxg5 {[%clk 0:01:56]}  fxe2+ {[%clk 0:02:34]} 43. Kxe2 {[%clk 0:01:57]}  Nd7 {[%clk 0:02:20]} 44. Ne6 {[%clk 0:01:42]}  Nb6 {[%clk 0:02:07]} 45. Ra1 {[%clk 0:01:40]}  Ne5 {[%clk 0:02:01]} 46. Rg1+ {[%clk 0:01:32]}  Ng4 {[%clk 0:02:02]} 47. Nf4 {[%clk 0:01:24]}  Kf8 {[%clk 0:01:41]} 48. Nxh5 {[%clk 0:01:23]}  Ne5 {[%clk 0:01:42]} 49. d4 {[%clk 0:00:20]}  Nc6 {[%clk 0:01:37]} 50. Rg7 {[%clk 0:00:21]}  Nd5 {[%clk 0:01:16]} 51. Rg5 {[%clk 0:00:15]}  Ncb4 {[%clk 0:01:12]} 52. Rf5+ {[%clk 0:00:09]}  Ke7 {[%clk 0:01:05]} 53. Nc4 {[%clk 0:00:09]}  Rxa6 {[%clk 0:01:06]} 54. Nf4 {[%clk 0:00:09]}  Nxf4+ {[%clk 0:01:04]} 55. Rxf4 {[%clk 0:00:11]}  Ra2+ {[%clk 0:01:04]} 56. Kf3 {[%clk 0:00:12]}  Nd5 {[%clk 0:01:03]} 57. Rf5 {[%clk 0:00:12]}  Nf6 {[%clk 0:01:01]} 58. Ne3 {[%clk 0:00:12]}  Rd2 {[%clk 0:00:56]} 59. Re5+ {[%clk 0:00:14]}  Kd7 {[%clk 0:00:52]} 60. Nf5 {[%clk 0:00:15]}  Rd1 {[%clk 0:00:48]} 61. Re7+ {[%clk 0:00:15]}  Kd8 {[%clk 0:00:49]} 62. Re6 {[%clk 0:00:16]}  Rf1+ {[%clk 0:00:48]} 63. Ke3 {[%clk 0:00:15]}  Rxf5 {[%clk 0:00:50]} 64. Re5 {[%clk 0:00:15]}  Rf1 {[%clk 0:00:49]} 65. Ke2 {[%clk 0:00:16]}  Ra1 {[%clk 0:00:50]} 66. Kd3 {[%clk 0:00:18]}  Kd7 {[%clk 0:00:51]} 67. Ke2 {[%clk 0:00:18]}  Kd6 {[%clk 0:00:53]} 68. Kd3 {[%clk 0:00:20]}  Nd5 {[%clk 0:00:54]} 69. Kd2 {[%clk 0:00:20]}  Ra3 {[%clk 0:00:55]} 70. Rh5 {[%clk 0:00:20]}  Nf4 {[%clk 0:00:55]} 71. Rg5 {[%clk 0:00:21]}  Rd3+ {[%clk 0:00:55]} 72. Kc2 {[%clk 0:00:22]}  Rxd4 {[%clk 0:00:57]} 73. Rg8 {[%clk 0:00:23]}  Ke5 {[%clk 0:00:58]} 74. Re8+ {[%clk 0:00:24]}  Kf5 {[%clk 0:00:59]} 75. Rf8+ {[%clk 0:00:25]}  Kg4 {[%clk 0:01:00]} 76. Rg8+ {[%clk 0:00:27]}  Kf3 {[%clk 0:01:02]} 77. Re8 {[%clk 0:00:28]}  Nd5 {[%clk 0:01:02]} 78. Re5 {[%clk 0:00:27]}  Ne3+ {[%clk 0:00:57]} 79. Kc3 {[%clk 0:00:28]}  Rd1 {[%clk 0:00:59]} 80. Re8 {[%clk 0:00:29]}  Ke2 {[%clk 0:00:58]} 81. Re7 {[%clk 0:00:29]}  Rd3+ {[%clk 0:00:58]} 82. Kb4 {[%clk 0:00:29]}  Kd2 {[%clk 0:00:59]} 83. Kc5 {[%clk 0:00:30]}  Kc3 {[%clk 0:01:00]} 84. Re8 {[%clk 0:00:30]}  Nc2 {[%clk 0:00:57]} 85. Rh8 {[%clk 0:00:29]}  Nb4 {[%clk 0:00:58]} 86. Kb5 {[%clk 0:00:28]}  Rd5+ {[%clk 0:00:59]} 87. Ka4 {[%clk 0:00:30]}  Nd3 {[%clk 0:00:59]} 88. Rh3 {[%clk 0:00:29]}  Rf5 {[%clk 0:00:55]} 89. Rg3 {[%clk 0:00:29]}  Rh5 {[%clk 0:00:55]} 90. Rg8 {[%clk 0:00:27]}  Kc4 {[%clk 0:00:55]} 91. Rc8+ {[%clk 0:00:19]}  Nc5+ {[%clk 0:00:57]} 92. Ka3 {[%clk 0:00:19]}  Rh2 {[%clk 0:00:56]} 93. Rc7 {[%clk 0:00:19]}  Rh3+ {[%clk 0:00:55]} 94. Kb2 {[%clk 0:00:20]}  Kb4 {[%clk 0:00:57]} 95. Kc2 {[%clk 0:00:19]}  Rh2+ {[%clk 0:00:58]} 96. Kd1 {[%clk 0:00:20]}  Kc4 {[%clk 0:01:00]} 97. Rc8 {[%clk 0:00:20]}  Kd4 {[%clk 0:01:01]} 98. Rd8+ {[%clk 0:00:21]}  Ke3 {[%clk 0:01:02]} 99. Re8+ {[%clk 0:00:19]}  Ne4 {[%clk 0:01:04]} 100. Kc1 {[%clk 0:00:21]}  Kd3 {[%clk 0:01:02]} 101. Rd8+ {[%clk 0:00:21]}  Kc3 {[%clk 0:01:03]} 102. Rc8+ {[%clk 0:00:23]}  Kd3 {[%clk 0:01:03]} 103. Rd8+ {[%clk 0:00:24]}  Kc4 {[%clk 0:01:05]} 104. Rc8+ {[%clk 0:00:25]}  Nc5 {[%clk 0:01:06]} 105. Kd1 {[%clk 0:00:27]}  Kd4 {[%clk 0:01:06]} 106. Rd8+ {[%clk 0:00:27]}  Kc3 {[%clk 0:01:08]} 107. Rc8 {[%clk 0:00:28]}  Rd2+ {[%clk 0:01:08]} 108. Ke1 {[%clk 0:00:25]} 1/2-1/2


[Site "Internet"]

[Event "Chessable Masters - Torneo preliminare"]
[White "Wagner, Dennis"]
[Black "Dreev, Aleksey"]
[WhiteFideId "24650684"]
[BlackFideId "4100107"]
[WhiteElo "2456"]
[BlackElo "2557"]
[Result "1/2-1/2"]
[Round "8"]
[TimeControl "600+2"]
[Date "2023.03.13"]
[WhiteClock "0:00:34"]
[BlackClock "0:01:56"]

1. d4 {[%clk 0:10:01]}  d5 {[%clk 0:09:58]} 2. c4 {[%clk 0:10:02]}  c6 {[%clk 0:09:58]} 3. Nf3 {[%clk 0:10:03]}  Nf6 {[%clk 0:09:59]} 4. Nc3 {[%clk 0:09:53]}  e6 {[%clk 0:09:59]} 5. Bg5 {[%clk 0:09:45]}  Nbd7 {[%clk 0:09:59]} 6. cxd5 {[%clk 0:09:36]}  exd5 {[%clk 0:09:59]} 7. Qc2 {[%clk 0:09:37]}  Be7 {[%clk 0:09:40]} 8. e3 {[%clk 0:09:38]}  Nh5 {[%clk 0:09:17]} 9. Bxe7 {[%clk 0:09:37]}  Qxe7 {[%clk 0:09:18]} 10. O-O-O {[%clk 0:09:36]}  Nb6 {[%clk 0:09:07]} 11. h3 {[%clk 0:09:28]}  Nf6 {[%clk 0:09:03]} 12. Bd3 {[%clk 0:09:09]}  Be6 {[%clk 0:09:01]} 13. Kb1 {[%clk 0:09:07]}  O-O-O {[%clk 0:08:58]} 14. Ne2 {[%clk 0:07:23]}  Kb8 {[%clk 0:08:35]} 15. Nf4 {[%clk 0:07:24]}  Rhe8 {[%clk 0:07:53]} 16. Ka1 {[%clk 0:07:24]}  Bc8 {[%clk 0:07:25]} 17. Nd2 {[%clk 0:06:29]}  Ne4 {[%clk 0:07:07]} 18. Nxe4 {[%clk 0:05:52]}  dxe4 {[%clk 0:07:07]} 19. Bc4 {[%clk 0:05:54]}  Qf6 {[%clk 0:04:51]} 20. h4 {[%clk 0:05:37]}  g6 {[%clk 0:03:46]} 21. Bb3 {[%clk 0:05:36]}  h6 {[%clk 0:03:47]} 22. Qe2 {[%clk 0:04:12]}  Qf5 {[%clk 0:03:17]} 23. Rc1 {[%clk 0:04:04]}  Re7 {[%clk 0:03:12]} 24. Rc5 {[%clk 0:03:43]}  Qg4 {[%clk 0:03:04]} 25. Qe1 {[%clk 0:03:28]}  Qd7 {[%clk 0:02:44]} 26. Qc3 {[%clk 0:02:51]}  Qd6 {[%clk 0:02:43]} 27. Rc1 {[%clk 0:02:47]}  Nd7 {[%clk 0:02:26]} 28. Ra5 {[%clk 0:02:48]}  Nb6 {[%clk 0:02:12]} 29. a3 {[%clk 0:02:24]}  a6 {[%clk 0:02:06]} 30. Rc5 {[%clk 0:01:56]}  Nd7 {[%clk 0:02:06]} 31. Rc4 {[%clk 0:01:49]}  Nb6 {[%clk 0:01:55]} 32. Rc5 {[%clk 0:01:01]}  Nd7 {[%clk 0:01:56]} 33. Ra5 {[%clk 0:00:53]}  Nb6 {[%clk 0:01:56]} 34. Rc5 {[%clk 0:00:34]} 1/2-1/2


[Site "Internet"]

[Event "Chessable Masters - Torneo preliminare"]
[White "Giri, Anish"]
[Black "Kosteniuk, Alexandra"]
[WhiteFideId "24116068"]
[BlackFideId "4128125"]
[WhiteElo "2714"]
[BlackElo "2524"]
[Result "1-0"]
[Round "8"]
[TimeControl "600+2"]
[Date "2023.03.13"]
[WhiteClock "0:06:49"]
[BlackClock "0:00:41"]

1. e4 {[%clk 0:10:01]}  c6 {[%clk 0:09:55]} 2. d4 {[%clk 0:09:54]}  d5 {[%clk 0:09:56]} 3. e5 {[%clk 0:09:56]}  c5 {[%clk 0:09:57]} 4. Nf3 {[%clk 0:09:42]}  Nc6 {[%clk 0:09:48]} 5. dxc5 {[%clk 0:09:37]}  e6 {[%clk 0:09:49]} 6. c3 {[%clk 0:09:34]}  Bxc5 {[%clk 0:09:42]} 7. b4 {[%clk 0:09:35]}  Be7 {[%clk 0:09:27]} 8. b5 {[%clk 0:09:34]}  Na5 {[%clk 0:09:22]} 9. Bd3 {[%clk 0:09:34]}  f5 {[%clk 0:09:09]} 10. exf6 {[%clk 0:09:20]}  Nxf6 {[%clk 0:08:46]} 11. O-O {[%clk 0:09:21]}  O-O {[%clk 0:08:45]} 12. Re1 {[%clk 0:09:20]}  Qc7 {[%clk 0:08:21]} 13. a4 {[%clk 0:09:00]}  e5 {[%clk 0:07:38]} 14. Nxe5 {[%clk 0:08:32]}  Bd6 {[%clk 0:07:39]} 15. Bf4 {[%clk 0:08:11]}  Ng4 {[%clk 0:06:45]} 16. Nxg4 {[%clk 0:07:57]}  Rxf4 {[%clk 0:04:58]} 17. Ne3 {[%clk 0:07:54]}  Qf7 {[%clk 0:04:53]} 18. Nd2 {[%clk 0:07:43]}  Be6 {[%clk 0:02:29]} 19. Nf3 {[%clk 0:07:31]}  Qf6 {[%clk 0:02:23]} 20. Be2 {[%clk 0:07:22]}  d4 {[%clk 0:01:49]} 21. Nxd4 {[%clk 0:06:51]}  Rxf2 {[%clk 0:00:43]} 22. Nxe6 {[%clk 0:06:47]}  Bxh2+ {[%clk 0:00:40]} 23. Kxh2 {[%clk 0:06:49]}  Qf4+ {[%clk 0:00:41]} 24. Nxf4 {[%clk 0:06:49]} 1-0


[Site "Internet"]